bitfinex/quotes_ETHUSD_20260304
["timestamp","ask_amount","ask_price","bid_price","bid_amount"]
[1772587906084,1.26196029,1981.1,1980.1,3.86182078]
[1772587906085,1.72965371,1981.1,1980.1,3.86182078]
[1772587906281,1.72965371,1981.1,1980.1,4.31727262]
[1772587907163,6.58752883,1981.2,1980.2,0.45545184]
[1772587907164,0.002,1981.2,1980.2,0.45545184]
[1772587907363,0.002,1981.2,1980.6,0.45545184]
[1772587908278,1.26388821,1981.2,1980.4,0.50148501]
[1772587909371,0.002,1981.2,1980.6,0.50148501]
[1772587910421,0.002,1981.2,1980.6,2.29002025]
[1772587910605,0.002,1981.2,1980.7,0.50148501]
[1772587910837,10.80201804,1981.8,1980.7,0.50148501]
[1772587911103,1.26141581,1981.9,1981.0,0.50148501]
[1772587911306,5.04561371,1982.0,1981.1,1.7634102]
[1772587911307,1.26139494,1982.0,1981.1,1.7634102]
[1772587911595,1.26139494,1982.0,1981.2,0.50148501]
[1772587912301,1.26133632,1982.1,1981.2,0.50148501]
[1772587913302,5.04515412,1982.3,1981.3,1.76328281]
[1772587913303,1.26116127,1982.3,1981.3,1.76328281]
[1772587914211,1.26108257,1982.5,1981.4,1.78853524]
[1772587914410,5.0435286,1982.8,1981.7,1.78853524]
[1772587914834,0.46201804,1982.8,1981.5,1.78853524]
[1772587915180,0.46201804,1982.8,1981.6,0.50148501]
[1772587915400,5.04311866,1983.0,1981.8,0.50148501]
[1772587916181,5.5051367,1983.0,1981.8,0.50148501]
[1772587917387,0.46201804,1982.9,1981.9,1.26141581]
[1772587918010,0.46201804,1982.9,1981.6,1.26160678]
[1772587918398,0.46201804,1982.6,1981.5,1.763148]
[1772587918622,0.46201804,1982.4,1981.2,0.50148501]
[1772587918919,0.46201804,1982.4,1981.1,2.86690397]
[1772587919119,0.46201804,1982.4,1981.1,3.36838898]
[1772587919411,1.26116127,1982.3,1981.1,3.36838898]
[1772587919613,0.46201804,1982.1,1980.8,0.50148501]
[1772587919818,0.46201804,1982.1,1980.6,1.26221156]
[1772587920017,0.46201804,1982.1,1980.6,1.76369657]
[1772587920391,0.46201804,1982.1,1980.7,0.50148501]
[1772587920911,3.01008599,1981.9,1980.7,0.50148501]
[1772587921115,0.46201804,1981.8,1980.5,3.05079784]
[1772587921290,0.46201804,1981.5,1980.2,1.26346341]
[1772587921489,1.78853524,1981.6,1980.2,1.26346341]
[1772587921490,0.46201804,1981.8,1980.6,2.29002025]
[1772587921714,1.26154311,1981.7,1980.7,0.50148501]
[1772587922427,1.72356115,1981.7,1980.7,0.50148501]
[1772587922634,0.46201804,1981.6,1980.3,0.50148501]
[1772587922934,0.46201804,1981.5,1980.3,1.76391567]
[1772587923094,0.46201804,1981.5,1980.4,0.50148501]
[1772587923420,1.26154311,1981.7,1980.6,0.50148501]
[1772587923607,5.04617247,1981.8,1980.9,0.50148501]
[1772587923608,1.26147946,1981.8,1980.9,0.50148501]
[1772587924826,1.26138054,1982.0,1980.9,0.50148501]
[1772587925126,1.26132804,1982.1,1981.2,0.50148501]
[1772587925490,1.26116127,1982.3,1981.3,1.2617978]
[1772587926426,1.26116127,1982.3,1981.4,0.50148501]
[1772587927534,0.46201804,1982.3,1981.4,1.76318219]
[1772587927733,0.002,1982.2,1981.4,0.50148501]
[1772587927923,0.46401804,1982.2,1981.2,1.26180992]
[1772587928126,0.002,1982.2,1981.3,0.50148501]
[1772587928326,1.26109765,1982.7,1981.3,0.50148501]
[1772587928327,0.5063,1984.3,1982.5,0.76162031]
[1772587928501,5.0,1984.5,1984.1,1.61158418]
[1772587928502,0.46789344,1984.2,1984.1,1.61158418]
[1772587928705,0.46201804,1985.4,1984.2,2.24085157]
[1772587928932,0.46770469,1985.3,1984.7,2.12421974]
[1772587929227,1.72123465,1985.4,1984.8,1.82581736]
[1772587929228,1.72121084,1985.4,1984.8,1.82581736]
[1772587929442,0.46201804,1985.4,1984.8,1.82581736]
[1772587929606,0.55320361,1985.9,1984.8,8.80393405]
[1772587929807,1.81208076,1985.9,1984.9,1.25950929]
[1772587930035,0.55320361,1985.8,1984.6,3.11377092]
[1772587930329,0.55320361,1985.8,1984.9,1.78853524]
[1772587930528,0.1559917,1986.0,1984.8,1.70489813]
[1772587930729,0.1559917,1986.0,1985.1,1.70489813]
[1772587930931,1.96801863,1986.0,1985.0,1.594]
[1772587931231,0.70919531,1986.0,1985.1,1.70489813]
[1772587931600,0.70919531,1986.0,1985.2,1.25931896]
[1772587932230,0.55320361,1985.9,1985.2,1.25931896]
[1772587932435,0.55320361,1985.9,1984.9,1.25950929]
[1772587932609,0.55320361,1985.8,1984.6,2.85769968]
[1772587933202,0.1559917,1986.0,1985.1,1.70489813]
[1772587933433,0.1559917,1986.0,1985.3,1.70489813]
[1772587933645,0.1559917,1986.0,1985.4,1.2591921]
[1772587934010,0.1559917,1986.0,1985.5,0.065536]
[1772587934242,1.2583727,1986.7,1985.5,0.065536]
[1772587934447,0.86816281,1987.7,1986.5,0.52182207]
[1772587934745,0.86816281,1987.7,1986.3,4.18401607]
[1772587934746,0.46201804,1987.6,1986.3,4.18401607]
[1772587934952,0.46201804,1987.6,1986.4,0.065536]
[1772587935249,0.46201804,1987.6,1986.4,1.70489813]
[1772587935419,0.46201804,1987.6,1986.4,0.065536]
[1772587935612,0.46201804,1987.6,1986.2,3.30289813]
[1772587935613,0.46201804,1987.4,1986.2,1.25864545]
[1772587936346,0.46201804,1987.4,1986.0,1.25881168]
[1772587936721,0.46201804,1987.4,1985.7,1.32453786]
[1772587937361,0.46201804,1987.4,1985.7,3.02943599]
[1772587937537,1.25786163,1987.5,1985.6,2.86403574]
[1772587937538,0.46201804,1987.3,1985.6,2.86403574]
[1772587937732,0.46201804,1987.3,1985.7,1.70489813]
[1772587937733,0.46201804,1987.1,1985.7,1.70489813]
[1772587938257,0.86816281,1987.7,1985.7,1.70489813]
[1772587938258,0.46572492,1988.5,1987.1,0.46201804]
[1772587938556,0.46572492,1988.5,1987.0,1.70489813]
[1772587939129,0.46572492,1988.5,1987.1,0.7]
[1772587939634,1.25729229,1988.4,1987.1,1.95809985]
[1772587939943,0.46635656,1988.3,1987.1,1.95809985]
[1772587940345,0.46635656,1988.3,1987.1,0.7]
[1772587940857,0.46635656,1988.3,1986.9,1.25820382]
[1772587941563,0.46835656,1987.3,1985.8,2.82493846]
[1772587941858,0.46635656,1987.2,1986.3,1.70489813]
[1772587942158,0.46635656,1987.2,1985.8,1.32447446]
[1772587942334,0.46635656,1987.2,1985.8,1.25893846]
[1772587942530,0.46635656,1987.2,1986.1,1.70489813]
[1772587942931,0.46635656,1987.2,1985.8,2.96383659]
[1772587943630,1.25811484,1987.1,1985.8,2.96383659]
[1772587943834,0.46635656,1987.0,1985.8,2.96383659]
[1772587944439,0.46635656,1987.0,1985.8,1.21674757]
[1772587944849,0.46635656,1987.0,1986.1,1.21674757]
[1772587945362,0.46635656,1987.0,1985.6,4.06677403]
[1772587945929,1.25824148,1986.9,1985.6,4.06677403]
[1772587946155,0.46635656,1986.8,1985.6,4.06677403]
[1772587946329,0.46635656,1987.0,1986.2,1.21674757]
[1772587948347,1.72639164,1987.3,1986.3,2.86462155]
[1772587948545,1.72639164,1987.3,1986.5,1.21674757]
[1772587948546,0.46835656,1987.3,1986.5,1.21674757]
[1772587949070,0.46835656,1987.3,1986.5,2.82474757]
[1772587949277,0.46835656,1987.3,1986.5,1.21674757]
[1772587949575,0.46635656,1987.2,1986.5,1.21674757]
[1772587949875,0.46635656,1987.2,1986.3,1.95862155]
[1772587950681,0.46635656,1987.1,1986.3,0.7]
[1772587950975,0.46635656,1987.1,1986.3,1.25861731]
[1772587951187,0.46635656,1987.1,1986.0,1.25881168]
[1772587951332,0.46635656,1987.1,1985.9,2.4755836]
[1772587951537,0.46635656,1987.1,1985.9,1.25883603]
[1772587952464,0.46635656,1987.1,1986.2,1.21674757]
[1772587952689,0.46835656,1987.3,1986.5,1.21674757]
[1772587954160,0.002,1987.3,1986.8,1.21674757]
[1772587954536,0.46835656,1987.3,1986.7,1.25836814]
[1772587955163,0.002,1987.3,1986.7,1.25836814]
[1772587955363,0.46835656,1987.3,1986.6,1.623]
[1772587955741,0.002,1987.3,1986.6,1.623]
[1772587956965,0.46635656,1987.7,1987.0,1.21674757]
[1772587957262,0.46635656,1988.0,1987.0,1.21674757]
[1772587957462,0.46635656,1988.0,1987.1,1.626]
[1772587957864,0.46635656,1988.0,1986.7,1.25836814]
[1772587958164,0.46635656,1988.0,1986.9,1.627]
[1772587958375,0.46635656,1988.0,1986.4,6.66108793]
[1772587958376,0.46635656,1987.8,1986.4,6.66108793]
[1772587958537,0.46635656,1987.8,1986.6,1.21674757]
[1772587958740,2.60716561,1987.9,1986.8,1.25830481]
[1772587958741,0.46635656,1987.6,1986.8,1.25830481]
[1772587958943,0.46635656,1987.6,1986.8,2.88530481]
[1772587959344,0.46635656,1987.6,1986.9,0.7]
[1772587959674,0.46635656,1987.6,1986.7,1.25834606]
[1772587960042,0.46635656,1987.7,1986.8,1.21674757]
[1772587960260,0.46635656,1988.5,1987.1,1.21674757]
[1772587960543,0.46635656,1988.5,1987.4,1.21674757]
[1772587960744,0.46635656,1988.5,1987.5,1.629]
[1772587961059,1.72358736,1988.5,1987.6,1.25779834]
[1772587961258,0.46635656,1988.4,1987.6,1.25779834]
[1772587963247,0.46635656,1989.3,1988.0,1.21674757]
[1772587963447,1.556,1989.7,1988.6,1.21674757]
[1772587963448,0.46635656,1989.7,1988.6,1.21674757]
[1772587963668,0.46635656,1989.7,1988.9,1.21674757]
[1772587963865,0.46635656,1989.7,1988.4,1.633]
[1772587964069,0.46635656,1989.7,1988.4,2.84974757]
[1772587964376,0.46635656,1989.7,1988.3,1.633]
[1772587964565,0.46635656,1989.7,1988.2,2.68746698]
[1772587964876,0.46635656,1989.7,1988.3,1.634]
[1772587965076,0.46635656,1989.5,1988.4,1.25729229]
[1772587965290,1.37273927,1989.9,1989.1,1.21674757]
[1772587965291,0.1559917,1989.9,1989.1,1.21674757]
[1772587965578,0.1559917,1989.9,1988.4,1.25729229]
[1772587965579,1.41233804,1989.9,1988.8,1.21674757]
[1772587965806,0.1559917,1989.9,1988.9,1.21674757]
[1772587966096,1.41237124,1989.9,1988.9,1.21674757]
[1772587966258,0.46635656,1989.8,1988.9,1.635]
[1772587966742,0.46635656,1989.8,1988.6,1.21674757]
[1772587966743,0.46635656,1989.8,1988.6,1.636]
[1772587967148,0.46635656,1989.6,1988.3,2.4740617]
[1772587967364,0.46635656,1989.6,1988.4,1.636]
[1772587967559,1.41237594,1989.9,1988.9,1.21674757]
[1772587967945,1.41233833,1989.9,1988.9,1.21674757]
[1772587968151,1.41233833,1989.9,1989.0,1.637]
[1772587968152,0.002,1989.7,1989.0,1.637]
[1772587968347,0.48836327,1989.7,1988.6,1.637]
[1772587968807,0.48836327,1989.7,1988.7,1.638]
[1772587969182,1.25653397,1989.6,1988.6,1.25716584]
[1772587969351,1.25653397,1989.6,1988.8,2.338]
[1772587969670,1.25653397,1989.6,1988.8,0.7]
[1772587969671,0.48636327,1989.5,1988.8,0.7]
[1772587970163,0.48636327,1989.5,1988.5,1.639]
[1772587970369,0.48636327,1989.5,1987.8,5.03047381]
[1772587970667,0.48636327,1989.4,1987.8,6.24722138]
[1772587970976,0.48636327,1989.4,1988.4,1.21674757]
[1772587971178,0.48636327,1989.4,1988.6,1.25716584]
[1772587971365,1.74302619,1989.4,1988.6,1.25716584]
[1772587972275,1.74302619,1989.4,1988.5,2.89818788]
[1772587972680,0.48636327,1989.4,1988.5,2.89818788]
[1772587972862,1.7430297,1989.4,1988.5,1.25718788]
[1772587973059,0.48636327,1989.4,1988.5,1.25718788]
[1772587973269,1.25657122,1989.6,1988.5,1.641]
[1772587973475,1.25657122,1989.6,1988.0,1.25741877]
[1772587973476,0.48636327,1989.5,1987.7,1.25773507]
[1772587973652,0.48636327,1989.4,1987.8,2.85774757]
[1772587973976,0.48636327,1989.4,1988.1,1.21674757]
[1772587974152,0.48636327,1989.4,1988.1,1.70301885]
[1772587974355,0.48636327,1989.4,1988.4,1.21674757]
[1772587974682,0.48636327,1989.4,1988.5,1.2641897]
[1772587974892,0.48636327,1989.4,1988.6,1.642]
[1772587975104,1.25850556,1989.7,1988.7,1.2641897]
[1772587975378,0.48636327,1989.6,1988.1,2.68474883]
[1772587975566,0.48636327,1989.4,1988.2,1.25741877]
[1772587975751,0.48636327,1989.4,1988.3,1.2641897]
[1772587975947,0.48636327,1989.4,1988.2,1.25741877]
[1772587976176,0.48636327,1989.4,1988.3,1.643]
[1772587976479,0.48636327,1989.3,1988.2,1.25741877]
[1772587976780,0.48636327,1989.3,1988.1,2.90045348]
[1772587977179,0.48636327,1989.1,1988.1,2.90045348]
[1772587978179,0.48636327,1989.1,1988.1,1.25745348]
[1772587978363,0.48636327,1989.1,1988.1,2.90047676]
[1772587978677,0.48636327,1989.1,1988.1,2.90047923]
[1772587978975,0.48636327,1989.1,1987.8,1.2641897]
[1772587979146,0.48636327,1989.1,1987.8,4.16585316]
[1772587979546,0.48636327,1988.9,1987.8,1.2641897]
[1772587979752,0.48636327,1988.9,1987.6,4.16594553]
[1772587980177,0.48636327,1988.7,1987.5,1.644]
[1772587980383,0.48636327,1988.3,1987.0,1.2641897]
[1772587980677,3.78529242,1989.0,1987.0,1.2641897]
[1772587980678,0.48636327,1988.1,1987.0,1.2641897]
[1772587980878,0.48636327,1988.1,1987.4,1.2641897]
[1772587981372,0.48636327,1988.1,1987.4,1.644]
[1772587981574,0.48636327,1988.1,1987.3,2.90198822]
[1772587981776,0.48636327,1988.1,1987.4,1.2641897]
[1772587981979,1.74384912,1988.1,1987.4,1.2641897]
[1772587982178,1.74384912,1988.1,1987.3,1.25798822]
[1772587982348,1.74384912,1988.1,1987.2,1.25800357]
[1772587982552,0.48636327,1988.0,1987.8,0.001]
[1772587982749,0.55189927,1989.2,1987.3,0.48627128]
[1772587982964,0.48636327,1989.1,1988.3,1.21542912]
[1772587983349,0.48636327,1989.1,1988.1,1.644]
[1772587983567,0.48636327,1989.1,1988.2,1.25741877]
[1772587983770,1.74321656,1989.1,1988.2,1.25741877]
[1772587984361,1.74321656,1989.1,1988.1,1.25744027]
[1772587984684,0.48636327,1989.0,1987.9,1.646]
[1772587984856,0.48636327,1989.0,1987.8,1.25767179]
[1772587985057,1.7430726,1989.4,1987.9,0.48627128]
[1772587985253,1.25849989,1989.7,1988.6,1.21542912]
[1772587985579,1.74486316,1989.7,1988.8,1.25703942]
[1772587985977,0.48836327,1989.7,1988.8,1.25703942]
[1772587986286,1.74484814,1989.7,1988.8,1.25703942]
[1772587986856,0.48636327,1989.6,1988.8,1.25703942]
[1772587987465,0.002,1989.7,1988.9,1.21542912]
[1772587987665,0.002,1989.7,1989.0,1.25691302]
[1772587987887,0.002,1989.7,1989.1,1.648]
[1772587988084,6.23961212,1990.4,1989.0,1.25691302]
[1772587988085,0.48636327,1991.1,1989.6,1.7017004]
[1772587988285,0.48636327,1991.1,1989.9,1.21542912]
[1772587988486,0.48636327,1991.0,1989.4,3.55894913]
[1772587988700,0.48636327,1991.0,1989.5,1.648]
[1772587988904,0.48636327,1991.0,1989.2,4.11075641]
[1772587988905,0.48636327,1991.0,1989.6,1.648]
[1772587989593,1.25571349,1990.9,1989.7,1.25647082]
[1772587989781,1.25571349,1990.9,1989.8,1.648]
[1772587989960,1.74205532,1991.0,1989.7,1.25647082]
[1772587990165,0.48636327,1991.0,1989.8,2.86342912]
[1772587990366,0.48636327,1990.9,1989.8,1.648]
[1772587990885,0.48636327,1991.3,1989.9,1.649]
[1772587991085,0.48636327,1991.3,1989.8,1.21542912]
[1772587991288,0.48636327,1991.2,1989.9,1.648]
[1772587991594,0.48636327,1991.2,1989.9,2.13427128]
[1772587991888,1.74191019,1991.2,1990.1,1.21542912]
[1772587992087,0.48636327,1991.1,1989.9,1.649]
[1772587992277,0.48636327,1991.1,1989.9,2.86442912]
[1772587992460,1.25554692,1991.2,1989.9,3.3507004]
[1772587992656,1.25551912,1991.3,1990.0,0.48627128]
[1772587993065,1.74188239,1991.3,1990.0,0.48627128]
[1772587993284,1.74188239,1991.3,1989.9,2.86442912]
[1772587993285,1.21542912,1991.7,1990.2,0.48627128]
[1772587993499,1.70179239,1991.7,1990.3,1.648]
[1772587993681,1.70179239,1991.7,1990.2,0.48627128]
[1772587993682,0.48636327,1991.5,1990.2,0.48627128]
[1772587993999,0.48636327,1991.5,1990.2,1.25611736]
[1772587994299,0.48636327,1991.5,1990.3,1.649]
[1772587994494,1.25527214,1991.6,1989.7,1.74271379]
[1772587994495,0.48636327,1991.0,1989.7,1.74271379]
[1772587994791,0.48636327,1991.3,1989.9,0.48627128]
[1772587995174,0.48636327,1991.3,1990.0,1.649]
[1772587995474,0.48636327,1991.3,1989.9,0.48627128]
[1772587995670,0.48636327,1991.1,1989.8,1.25638864]
[1772587995875,1.70179239,1991.1,1989.8,2.90438864]
[1772587996286,0.48636327,1991.1,1989.8,2.90438864]
[1772587996592,0.48636327,1991.0,1989.5,0.48627128]
[1772587996763,0.48636327,1990.7,1989.4,1.648]
[1772587997164,0.48636327,1990.7,1989.3,1.648]
[1772587997365,0.48636327,1990.7,1989.2,1.74305792]
[1772587997668,1.21542912,1991.1,1988.7,5.09394234]
[1772587997669,0.48636327,1990.4,1988.7,1.21542912]
[1772587997868,0.48636327,1990.4,1988.4,4.60696586]
[1772587997869,0.48636327,1989.8,1988.4,4.60696586]
[1772587998169,0.48636327,1989.8,1988.5,1.648]
[1772587998804,1.25609204,1990.3,1988.5,1.648]
[1772587998805,0.53862619,1990.1,1988.7,1.71590571]
[1772587999003,0.53862619,1990.1,1988.4,2.47269458]
[1772587999209,0.53862619,1990.1,1988.5,1.647]
[1772587999502,0.53862619,1990.1,1988.6,1.71590571]
[1772587999705,0.53862619,1990.1,1988.7,0.50047659]
[1772588000206,1.2562814,1990.0,1988.7,0.50047659]
[1772588000415,1.2562814,1990.0,1988.8,2.90403942]
[1772588000875,1.79093035,1990.0,1988.8,2.90403942]
[1772588001076,1.50723702,1990.4,1988.8,2.90403942]
[1772588001077,0.53464895,1990.8,1988.9,0.5208917]
[1772588001279,1.79023631,1991.1,1989.8,1.73632082]
[1772588001574,1.79023631,1991.1,1989.9,1.647]
[1772588001780,1.79023631,1991.1,1990.0,1.629]
[1772588002178,1.79023631,1991.1,1989.8,1.73632082]
[1772588002377,1.79023631,1991.1,1989.2,4.10215259]
[1772588002378,0.53464895,1990.9,1989.2,4.10215259]
[1772588002595,0.53464895,1990.6,1989.3,5.02681045]
[1772588003096,0.53464895,1990.6,1989.1,1.25684983]
[1772588004388,0.53464895,1990.3,1989.1,1.25684983]
[1772588006269,1.25615516,1990.2,1989.0,5.02739932]
[1772588006978,1.25615516,1990.2,1988.5,5.02887228]
[1772588006979,0.53464895,1990.1,1988.6,1.634]
[1772588007373,1.25615516,1990.2,1988.8,0.5208917]
[1772588007597,1.25615516,1990.2,1988.5,1.25722906]
[1772588007598,0.53464895,1990.1,1988.5,1.25722906]
[1772588007811,0.53464895,1990.1,1988.6,1.635]
[1772588008171,0.53464895,1990.1,1988.6,2.1558917]
[1772588008372,1.79093035,1990.0,1988.7,1.25710262]
[1772588009276,0.53464895,1989.9,1988.7,1.25710262]
[1772588009895,0.53464895,1989.8,1988.5,1.25716659]
[1772588010497,1.25647082,1989.7,1988.7,0.001]
[1772588011985,1.25647082,1989.7,1988.7,1.636]
[1772588012185,1.25647082,1989.7,1988.7,0.001]
[1772588012385,0.53464895,1989.6,1988.7,0.001]
[1772588012611,1.25659713,1989.5,1988.7,0.001]
[1772588012914,1.79124608,1989.5,1988.7,0.001]
[1772588013794,1.25659713,1989.5,1988.7,0.001]
[1772588013989,1.25640767,1989.8,1988.7,0.001]
[1772588014815,1.79074099,1990.3,1988.8,0.5208917]
[1772588015113,0.53464895,1990.2,1988.8,0.5208917]
[1772588015285,0.53464895,1990.1,1988.7,1.635]
[1772588015613,0.53464895,1990.1,1988.7,0.5218917]
[1772588015803,0.53464895,1990.1,1988.8,1.634]
[1772588016201,0.53464895,1990.1,1988.7,2.1558917]
[1772588016714,1.2562814,1990.0,1988.9,1.77786791]
[1772588017410,1.25626489,1990.1,1989.0,0.5208917]
[1772588018510,1.79091384,1990.1,1989.0,2.1538917]
[1772588018715,5.02487312,1990.3,1988.9,1.633]
[1772588018716,0.53464895,1990.0,1988.9,1.633]
[1772588018893,0.53464895,1990.0,1988.8,1.633]
[1772588019287,0.53464895,1990.0,1988.7,5.02890487]
[1772588020721,0.53464895,1989.7,1988.7,0.001]
[1772588020890,0.53464895,1989.6,1988.7,0.001]
[1772588022815,0.53464895,1989.6,1988.1,1.25743807]
[1772588022816,0.53464895,1989.4,1988.1,1.25743807]
[1772588023065,0.53464895,1989.4,1987.8,1.25767179]
[1772588023613,0.53464895,1989.2,1987.8,1.25767179]
[1772588024032,0.53464895,1989.2,1987.7,1.77857759]
[1772588024215,0.53464895,1989.2,1987.9,0.001]
[1772588024796,1.79149878,1989.1,1987.9,0.001]
[1772588025625,0.53464895,1989.0,1987.9,0.001]
[1772588026429,0.53464895,1988.9,1987.9,0.001]
[1772588027004,1.25703942,1988.8,1987.9,0.001]
[1772588027215,0.53464895,1988.7,1987.9,0.001]
[1772588027412,2.23289963,1988.7,1987.9,0.001]
[1772588027728,0.53464895,1988.6,1987.9,0.001]
[1772588029242,1.8097301,1988.5,1987.9,0.001]
[1772588029836,1.25722906,1988.5,1987.9,0.001]
[1772588030035,1.77236677,1988.4,1987.5,0.001]
[1772588030243,0.55250104,1988.3,1987.5,0.001]
[1772588030586,1.25722906,1988.5,1987.5,0.001]
[1772588031036,5.5814173,1988.7,1987.5,0.53663781]
[1772588031037,1.8096402,1988.7,1987.5,0.53663781]
[1772588031332,1.8096402,1988.7,1987.7,0.53563781]
[1772588032704,0.55250104,1988.6,1987.6,1.25779834]
[1772588033110,1.25707609,1988.8,1987.8,1.25767179]
[1772588033335,1.80957713,1988.8,1987.8,1.25767179]
[1772588034445,1.80957713,1988.8,1987.7,1.25769253]
[1772588034446,0.55250104,1988.7,1987.7,1.25769253]
[1772588034741,0.55250104,1988.7,1987.6,1.79343251]
[1772588034943,0.55250104,1988.4,1987.5,1.25884136]
[1772588035136,1.25707609,1988.8,1987.8,0.53563781]
[1772588036117,1.25707609,1988.8,1987.8,2.15563781]
[1772588036654,1.25707609,1988.8,1987.8,1.62]
[1772588036948,1.25691302,1989.0,1987.9,0.53563781]
[1772588037123,1.25691302,1989.0,1988.0,1.79318308]
[1772588038248,1.80941406,1989.0,1988.0,1.79318308]
[1772588039045,0.002,1988.8,1988.0,1.79318308]
[1772588039450,0.002,1988.8,1988.0,0.53563781]
[1772588040652,0.002,1988.8,1987.9,1.25858836]
[1772588041429,0.002,1988.8,1988.0,0.53563781]
[1772588041749,0.002,1988.8,1988.1,0.53563781]
[1772588042558,2.32486781,1988.7,1987.9,0.001]
[1772588042862,0.55250104,1988.6,1987.9,0.001]
[1772588043548,1.8097301,1988.5,1987.9,0.001]
[1772588044025,1.25713228,1988.7,1987.9,0.001]
[1772588044348,0.002,1988.8,1987.9,0.53663781]
[1772588044566,1.25907058,1988.8,1987.9,0.53663781]
[1772588045058,0.002,1988.8,1987.9,0.53663781]
[1772588045361,1.25903958,1988.8,1987.9,0.53663781]
[1772588045521,0.002,1988.8,1988.0,1.79318308]
[1772588046062,0.002,1988.8,1988.3,0.53563781]
[1772588047559,0.002,1988.8,1988.4,1.25729229]
[1772588047936,0.55450104,1988.8,1988.0,1.25754527]
[1772588048428,0.002,1988.8,1988.0,1.25754527]
[1772588048880,11.59672347,1989.4,1988.3,0.53563781]
[1772588048881,10.34,1989.4,1988.3,0.53563781]
[1772588049156,19.13,1989.7,1988.3,0.53563781]
[1772588049157,1.25647082,1989.7,1988.3,0.53563781]
[1772588049558,1.25659713,1989.5,1988.4,1.7929301]
[1772588049952,1.25659713,1989.5,1988.5,1.616]
[1772588050542,1.25659713,1989.5,1988.4,1.7929301]
[1772588050543,0.55250104,1989.4,1988.4,1.7929301]
[1772588051162,1.25659713,1989.5,1988.5,0.53563781]
[1772588051363,1.25657099,1989.6,1988.5,0.53563781]
[1772588051567,7.6050483,1989.9,1988.5,0.53563781]
[1772588051568,0.55250104,1990.3,1989.1,0.53563781]
[1772588051860,1.80860364,1990.3,1989.3,0.53563781]
[1772588052060,1.25588815,1990.7,1989.4,0.53563781]
[1772588052363,1.25588815,1990.7,1989.0,3.54473354]
[1772588052364,1.25588815,1990.7,1989.0,2.35654947]
[1772588052365,0.55250104,1990.0,1989.0,2.35654947]
[1772588052659,0.55250104,1990.3,1988.8,0.53563781]
[1772588052863,0.55250104,1990.3,1988.6,5.38608208]
[1772588052864,0.55250104,1990.3,1989.0,0.53563781]
[1772588053633,0.002,1989.6,1988.9,2.87493306]
[1772588054032,0.002,1989.6,1988.9,1.25693306]
[1772588054228,0.55450104,1989.6,1988.6,2.87612822]
[1772588054746,0.55450104,1989.6,1988.2,3.81682517]
[1772588054747,1.77236677,1989.5,1988.2,3.81682517]
[1772588055061,1.77236677,1989.5,1988.3,0.53563781]
[1772588055062,0.55250104,1989.4,1988.3,0.53563781]
[1772588055264,0.55250104,1989.4,1988.2,5.97146298]
[1772588055573,0.002,1989.6,1988.3,0.53563781]
[1772588055763,0.002,1989.6,1988.5,0.53563781]
[1772588056268,0.002,1989.6,1988.4,3.02965906]
[1772588056269,0.002,1989.6,1988.8,0.53563781]
[1772588056468,0.002,1989.6,1988.9,1.62]
[1772588056764,0.002,1989.6,1988.8,0.53563781]
[1772588056970,0.55450104,1989.6,1988.5,0.53563781]
[1772588057670,1.25659713,1989.5,1988.6,1.25716584]
[1772588058074,1.25659713,1989.5,1988.6,1.79280365]
[1772588058248,5.58088957,1989.6,1988.6,1.79280365]
[1772588058249,0.002,1989.6,1988.7,0.5675631]
[1772588058751,0.002,1989.6,1988.3,5.02866338]
[1772588058752,0.55533319,1989.1,1988.0,1.25853424]
[1772588059072,0.55533319,1989.1,1988.0,0.001]
[1772588059872,0.53612179,1988.8,1988.0,0.001]
[1772588060168,0.53612179,1988.9,1988.0,0.001]
[1772588061254,1.25691302,1989.0,1988.0,0.528513]
[1772588061765,0.53612179,1989.3,1988.1,1.78499501]
[1772588061766,5.0272496,1989.2,1988.1,1.78499501]
[1772588062072,3.8787043,1989.4,1988.2,0.527513]
[1772588062285,0.53612179,1989.4,1988.4,0.527513]
[1772588062445,1.25854064,1989.6,1988.4,0.527513]
[1772588062646,1.25854064,1989.6,1988.5,0.527513]
[1772588063060,1.79466243,1989.6,1988.5,0.527513]
[1772588063861,1.79466243,1989.6,1988.6,1.25716584]
[1772588064444,1.79466243,1989.6,1988.5,5.55617638]
[1772588064445,2.30848856,1989.5,1988.5,1.25721319]
[1772588064671,2.30848856,1989.5,1988.0,0.001]
[1772588064672,0.53612179,1988.8,1988.0,0.001]
[1772588065976,1.79322441,1988.7,1988.0,0.001]
[1772588066380,0.53612179,1988.5,1988.0,0.001]
[1772588066585,1.80211121,1988.5,1988.0,0.001]
[1772588067874,0.53612179,1988.5,1988.0,0.001]
[1772588068145,1.25723424,1988.5,1988.0,0.001]
[1772588068502,2.52283925,1989.2,1988.0,0.001]
[1772588068654,5.02746463,1989.1,1988.4,0.001]
[1772588069200,1.80211121,1989.0,1988.4,0.001]
[1772588069355,1.26598942,1989.0,1988.4,0.001]
[1772588069557,1.26598942,1988.8,1988.4,0.001]
[1772588069789,5.02746463,1989.1,1988.4,0.001]
[1772588070754,2.52283925,1989.2,1988.4,0.001]
[1772588070755,1.26598942,1989.2,1988.4,0.001]
[1772588071064,1.25684983,1989.1,1988.4,0.001]
[1772588071393,1.25684983,1989.1,1987.9,0.001]
[1772588071394,0.53612179,1988.4,1987.9,0.001]
[1772588071698,1.26598942,1988.3,1987.9,0.001]
[1772588072077,1.25741877,1988.2,1987.9,0.001]
[1772588072276,6.2956645,1988.3,1987.9,0.001]
[1772588072277,1.25739613,1988.3,1987.9,0.001]
[1772588072685,1.25734008,1988.4,1987.9,0.001]
[1772588073004,1.2572745,1988.5,1987.9,0.001]
[1772588074101,1.26598942,1988.3,1987.9,0.001]
[1772588074310,1.25741877,1988.2,1987.9,0.001]
[1772588074472,1.25741877,1988.2,1987.5,0.001]
[1772588074473,1.26598942,1988.1,1987.5,0.001]
[1772588074995,1.80211121,1988.1,1987.5,0.001]
[1772588075209,2.52338245,1988.3,1987.5,0.001]
[1772588075415,5.02876628,1988.6,1987.5,0.528513]
[1772588075622,5.56488807,1988.6,1987.5,0.528513]
[1772588077306,1.25716735,1988.6,1987.6,1.78531134]
[1772588077473,6.29396827,1988.9,1987.7,0.527513]
[1772588077673,1.25678664,1989.2,1987.9,0.527513]
[1772588078211,1.26598942,1989.1,1987.9,0.527513]
[1772588078807,1.25669994,1989.4,1988.4,1.79350242]
[1772588079011,1.25669994,1989.4,1987.6,5.23534781]
[1772588079012,1.80211121,1989.0,1987.7,0.527513]
[1772588079195,1.25692318,1989.0,1987.9,0.527513]
[1772588079674,1.25692318,1989.0,1987.8,1.25767179]